bitfinex-derivatives/quotes_BTCF0:USTF0_20251115
["timestamp","ask_amount","ask_price","bid_price","bid_amount"]
[1763226592259,0.04723803,96010.0,95994.0,0.01286633]
[1763226592452,0.04504,96001.0,96000.0,0.04542197]
[1763226594059,0.04504,96001.0,96000.0,0.04642197]
[1763226594856,0.04504,96001.0,96000.0,0.04742197]
[1763226595457,0.04504,96001.0,96000.0,0.04642197]
[1763226595758,0.04504,96001.0,96000.0,0.04742197]
[1763226596351,0.00015633,96013.0,96012.0,0.05839]
[1763226596553,0.07478649,96034.0,96012.0,0.05839]
[1763226596554,0.03723406,96019.0,96017.0,0.04469]
[1763226596855,0.07478649,96038.0,96012.0,0.3745]
[1763226596856,0.04504,96034.0,96033.0,0.04469]
[1763226597248,0.7216,96039.0,96012.0,0.02206]
[1763226597249,0.04504,96013.0,96012.0,0.02206]
[1763226597457,0.04504,96011.0,96010.0,0.04542197]
[1763226597651,0.3608,96016.0,96015.0,0.04469]
[1763226597652,0.40584,96016.0,96015.0,0.04469]
[1763226599059,0.04504,96016.0,96015.0,0.04469]
[1763226599262,0.00219803,96020.0,96019.0,0.04379]
[1763226600251,0.00015624,96022.0,96021.0,0.0565]
[1763226600654,0.04465624,96022.0,96021.0,0.04379]
[1763226601054,0.04465624,96022.0,96021.0,0.05662]
[1763226601851,0.04465624,96022.0,96021.0,0.04379]
[1763226603449,0.0581,96021.0,96020.0,0.00073197]
[1763226603758,0.0445,96021.0,96020.0,0.04452197]
[1763226604153,0.00015624,96022.0,96021.0,0.05662]
[1763226604559,0.02176624,96022.0,96021.0,0.05662]
[1763226604759,0.04465624,96022.0,96021.0,0.05662]
[1763226605659,0.04465624,96022.0,96021.0,0.05762]
[1763226606457,0.04465624,96022.0,96021.0,0.04479]
[1763226607160,0.04465624,96022.0,96021.0,0.04379]
[1763226609662,0.00015624,96022.0,96021.0,0.04379]
[1763226610361,0.02176624,96022.0,96021.0,0.04379]
[1763226611961,0.04465624,96022.0,96021.0,0.04379]
[1763226614256,0.00015624,96022.0,96021.0,0.04379]
[1763226614759,0.08149662,96041.0,96040.0,0.0569]
[1763226614961,0.04405,96041.0,96040.0,0.04438197]
[1763226615267,0.04405,96041.0,96040.0,0.02183197]
[1763226616155,0.04505,96041.0,96040.0,0.04438197]
[1763226617662,0.04405,96041.0,96040.0,0.04438197]
[1763226617864,0.04505,96041.0,96040.0,0.04438197]
[1763226618259,0.04405,96041.0,96040.0,0.04438197]
[1763226618463,0.04505,96041.0,96040.0,0.04438197]
[1763226620264,0.04505,96041.0,96040.0,0.02183197]
[1763226620866,0.04505,96041.0,96040.0,0.04438197]
[1763226621066,0.04505,96041.0,96040.0,0.05786197]
[1763226621263,0.04505,96041.0,96040.0,0.04438197]
[1763226621473,0.04505,96041.0,96032.0,0.01352]
[1763226621474,0.04405,96032.0,96031.0,0.00015624]
[1763226621674,0.40485,96032.0,96031.0,0.00015624]
[1763226622281,0.04405,96013.0,96012.0,0.04365]
[1763226622768,0.04405,96011.0,96010.0,0.00073197]
[1763226623172,0.04405,96011.0,96010.0,0.04438197]
[1763226624267,0.04405,96011.0,96010.0,0.04538197]
[1763226625075,0.40485,96018.0,96017.0,0.04365]
[1763226625577,0.04405,96011.0,96010.0,0.04465]
[1763226625775,0.04405,96011.0,96010.0,0.00173197]
[1763226626478,0.01901722,96011.0,96010.0,0.00073197]
[1763226626679,0.04104722,96011.0,96010.0,0.00073197]
[1763226626875,0.04104722,96011.0,96010.0,0.02183197]
[1763226627875,0.04104722,96011.0,96010.0,0.04438197]
[1763226637182,0.40184722,96011.0,96010.0,0.04438197]
[1763226637386,0.04319,96002.0,96001.0,0.04535624]
[1763226637585,0.40399,96002.0,96001.0,0.00015624]
[1763226638287,0.40399,96002.0,96001.0,0.04535624]
[1763226638492,0.3608,96002.0,96001.0,0.04535624]
[1763226639186,0.40399,96010.0,96009.0,0.0452]
[1763226639386,0.40618803,96010.0,96009.0,0.0452]
[1763226639583,0.38416803,96010.0,96009.0,0.0452]
[1763226639984,0.40618803,96010.0,96009.0,0.0452]
[1763226645995,0.04319,96002.0,96001.0,0.04535624]
[1763226646497,0.40399,96002.0,96001.0,0.00015624]
[1763226648894,0.40399,96002.0,96001.0,0.04535624]
[1763226649303,0.40399,96002.0,96001.0,0.00015624]
[1763226650403,0.04319,95989.0,95988.0,0.02302496]
[1763226650698,0.38880161,95989.0,95988.0,0.04532496]
[1763226650899,0.38880161,95989.0,95988.0,0.02302496]
[1763226651100,0.38880161,95989.0,95988.0,0.04532496]
[1763226651301,0.38880161,95989.0,95988.0,0.00012496]
[1763226653401,0.44498515,95989.0,95988.0,0.00012496]
[1763226653790,0.4262573,95989.0,95988.0,0.00012496]
[1763226654498,0.4262573,95989.0,95988.0,0.04532496]
[1763226654801,0.38880161,95989.0,95988.0,0.04532496]
[1763226655502,0.38980161,95989.0,95988.0,0.04532496]
[1763226656095,0.38880161,95989.0,95988.0,0.04532496]
[1763226657803,0.38880161,95989.0,95988.0,0.00012496]
[1763226658004,0.38880161,95989.0,95979.0,0.00015624]
[1763226658005,0.0197,95980.0,95979.0,0.00015624]
[1763226658198,0.38269803,95980.0,95979.0,0.00015624]
[1763226658499,0.38269803,95980.0,95979.0,0.02283624]
[1763226658700,0.38269803,95980.0,95979.0,0.04614624]
[1763226659192,0.39325184,95980.0,95979.0,0.04614624]
[1763226664711,0.38269803,95980.0,95979.0,0.04614624]
[1763226665008,0.39320175,95980.0,95979.0,0.04614624]
[1763226665706,0.38369803,95980.0,95979.0,0.04614624]
[1763226670306,0.38369803,95980.0,95979.0,0.04714624]
[1763226671004,0.38369803,95980.0,95979.0,0.04614624]
[1763226671199,0.38269803,95980.0,95979.0,0.04614624]
[1763226676011,0.36299803,95980.0,95979.0,0.04614624]
[1763226676213,0.36089715,95989.0,95988.0,0.05732]
[1763226676510,0.38059715,95989.0,95988.0,0.05732]
[1763226678117,0.38159715,95989.0,95988.0,0.05732]
[1763226679612,0.00985,95981.0,95980.0,0.02116]
[1763226679912,0.00985,95981.0,95980.0,0.04516197]
[1763226679913,0.0197,95981.0,95980.0,0.04516197]
[1763226680314,0.0197,95981.0,95980.0,0.07325037]
[1763226680622,0.0197,95981.0,95980.0,0.04516197]
[1763226681913,0.3805,95981.0,95980.0,0.00073197]
[1763226682916,0.41794464,95981.0,95980.0,0.00073197]
[1763226683619,0.3805,95981.0,95980.0,0.00073197]
[1763226684119,0.3815,95981.0,95980.0,0.00073197]
[1763226684307,0.3815,95981.0,95980.0,0.04516197]
[1763226684711,0.41900806,95981.0,95980.0,0.04516197]
[1763226685611,0.3815,95981.0,95980.0,0.04516197]
[1763226686214,0.3805,95981.0,95980.0,0.04516197]
[1763226686813,0.3815,95981.0,95980.0,0.04516197]
[1763226687412,0.3805,95981.0,95980.0,0.04516197]
[1763226690821,0.3815,95981.0,95980.0,0.04516197]
[1763226692918,0.3815,95981.0,95980.0,0.05802197]
[1763226693125,0.3805,95981.0,95980.0,0.05802197]
[1763226693826,0.3815,95981.0,95980.0,0.05802197]
[1763226696018,0.3805,95981.0,95980.0,0.05802197]
[1763226696827,0.05627988,95985.0,95984.0,0.0447]
[1763226697030,9.715e-05,95989.0,95988.0,0.0447]
[1763226697331,0.03751614,96000.0,95997.0,0.0447]
[1763226697518,0.03751614,96001.0,95997.0,0.0447]
[1763226697827,0.40534,96022.0,96021.0,0.0447]
[1763226698023,0.41554001,96022.0,96021.0,0.0447]
[1763226698222,0.40534,96022.0,96021.0,0.0447]
[1763226698624,0.04454,96025.0,96024.0,0.05756]
[1763226698830,0.04454,96025.0,96024.0,0.0447]
[1763226699721,0.04554,96025.0,96024.0,0.0447]
[1763226702022,0.04454,96021.0,96020.0,0.04543197]
[1763226704032,0.04554,96021.0,96020.0,0.04543197]
[1763226705523,0.02402,96021.0,96020.0,0.04543197]
[1763226705833,0.001,96021.0,96020.0,0.04543197]
[1763226706227,0.00015624,96031.0,96030.0,0.05756]
[1763226706428,0.02317624,96031.0,96030.0,0.05829197]
[1763226706934,0.04469624,96031.0,96030.0,0.05829197]
[1763226707434,0.04569624,96031.0,96030.0,0.05829197]
[1763226708327,0.04569624,96031.0,96030.0,0.00073197]
[1763226708528,0.04669624,96031.0,96030.0,0.00073197]
[1763226709436,0.04569624,96031.0,96030.0,0.00073197]
[1763226709630,0.04669624,96031.0,96030.0,0.00073197]
[1763226709930,0.02517624,96031.0,96030.0,0.04543197]
[1763226710134,0.04669624,96031.0,96030.0,0.04543197]
[1763226710447,0.00215624,96031.0,96030.0,0.04543197]
[1763226716348,0.04669624,96031.0,96030.0,0.00073197]
[1763226716845,0.04669624,96031.0,96030.0,0.02279197]
[1763226717051,0.04669624,96031.0,96030.0,0.04543197]
[1763226721656,0.04669624,96031.0,96020.0,0.08154175]
[1763226721657,0.04507,96013.0,96012.0,0.02295624]
[1763226721846,0.40587,96013.0,96012.0,0.04572624]
[1763226722047,0.40802624,96031.0,96030.0,0.04557]
[1763226722344,0.40802624,96031.0,96030.0,0.00073197]
[1763226722750,0.40702624,96031.0,96030.0,0.00073197]
[1763226723461,0.40802624,96031.0,96030.0,0.00073197]
[1763226723755,0.40702624,96031.0,96030.0,0.00073197]
[1763226724556,0.40802624,96031.0,96030.0,0.00073197]
[1763226724958,0.40802624,96031.0,96030.0,0.04630197]
[1763226725960,0.40802624,96031.0,96030.0,0.00073197]
[1763226726651,0.40802624,96031.0,96030.0,0.04630197]
[1763226727063,0.40802624,96031.0,96030.0,0.00073197]
[1763226728150,0.44549218,96031.0,96030.0,0.00073197]
[1763226728555,0.40802624,96031.0,96030.0,0.00073197]
[1763226730659,0.04507,96021.0,96020.0,0.10434175]
[1763226730960,0.40587,96021.0,96020.0,0.02353197]
[1763226731266,0.40587,96021.0,96020.0,0.00073197]
[1763226731658,0.40587,96021.0,96012.0,0.38882962]
[1763226731659,0.04331,96013.0,96012.0,0.00015624]
[1763226732256,0.40411,96013.0,96012.0,0.00015624]
[1763226733052,0.04331,96001.0,96000.0,0.13051513]
[1763226733262,0.04331,96001.0,96000.0,0.02183197]
[1763226733765,0.04331,96001.0,96000.0,0.04314197]
[1763226734965,0.04331,96001.0,96000.0,0.00073197]
[1763226735767,0.04331,96001.0,96000.0,0.04314197]
[1763226737060,0.00015624,96010.0,96007.0,0.04241]
[1763226737061,0.02196,96008.0,96007.0,0.04241]
[1763226737655,0.04331,96008.0,96007.0,0.04241]
[1763226738963,0.04431,96008.0,96007.0,0.04241]
[1763226739562,0.04531,96008.0,96007.0,0.04241]
[1763226745861,0.05498,96000.0,95999.0,0.02787338]
[1763226746061,0.40411,95999.0,95998.0,0.06152]
[1763226746261,0.04331,95992.0,95991.0,0.04256624]
[1763226747256,0.05364232,95992.0,95991.0,0.00015624]
[1763226747660,0.05364232,95992.0,95991.0,0.02125624]
[1763226748772,0.04331,95992.0,95991.0,0.04303624]
[1763226749072,0.05377894,95992.0,95991.0,0.04303624]
[1763226749766,0.05477894,95992.0,95991.0,0.04303624]
[1763226750069,0.05477894,95992.0,95991.0,0.00015624]
[1763226750456,0.05477894,95992.0,95991.0,0.02118624]
[1763226750862,0.04431,95992.0,95991.0,0.04296624]
[1763226751068,0.001,95992.0,95991.0,0.05672624]
[1763226751670,0.38381,95999.0,95998.0,0.05657]
[1763226751861,0.40524,95999.0,95998.0,0.05657]
[1763226753367,0.40524,95999.0,95998.0,0.05857]
[1763226753564,0.38381,95999.0,95998.0,0.05857]
[1763226753768,0.40524,95999.0,95998.0,0.05857]
[1763226754988,0.3608,95999.0,95998.0,0.05857]
[1763226755164,0.00219803,96000.0,95999.0,0.04281]
[1763226755969,0.02520803,96000.0,95999.0,0.04281]
[1763226756370,0.04663803,96000.0,95999.0,0.04281]
[1763226757275,0.04459624,96010.0,96009.0,0.04281]
[1763226757466,0.04679427,96010.0,96009.0,0.04281]
[1763226758068,0.05741118,96010.0,96009.0,0.04281]
[1763226758874,0.04679427,96010.0,96009.0,0.04281]
[1763226759283,0.04444,96001.0,96000.0,0.28729044]
[1763226759471,0.04444,96001.0,96000.0,0.04354197]
[1763226761070,0.04444,96001.0,96000.0,0.04454197]
[1763226761676,0.04444,96001.0,96000.0,0.04354197]
[1763226764579,0.04444,96001.0,96000.0,0.04554197]
[1763226766774,0.04444,96001.0,96000.0,0.04454197]
[1763226767669,0.04444,96001.0,96000.0,0.04554197]
[1763226768480,0.04444,96001.0,96000.0,0.04454197]
[1763226768679,0.04444,96001.0,96000.0,0.04554197]
[1763226769880,0.04444,96001.0,96000.0,0.05930197]
[1763226771183,0.04444,96001.0,96000.0,0.04454197]
[1763226771385,0.04444,96001.0,96000.0,0.04554197]
[1763226775680,0.04444,96001.0,96000.0,0.02376197]
[1763226775979,0.04444,96001.0,96000.0,0.04454197]
[1763226776175,0.04444,96001.0,96000.0,0.04554197]
[1763226776380,0.40524,96001.0,96000.0,0.002]
[1763226776573,0.40524,96001.0,96000.0,0.0008959]
[1763226776777,0.40524,96001.0,96000.0,0.0018959]
[1763226776978,0.40524,96001.0,96000.0,0.002]
[1763226777183,0.46111999,96001.0,96000.0,0.001]
[1763226777381,0.40524,96001.0,96000.0,0.002]
[1763226778479,0.40524,96001.0,96000.0,0.001]
[1763226778685,0.40524,96001.0,96000.0,0.002]
[1763226779584,0.40524,96001.0,96000.0,0.001]
[1763226779985,0.04414,95992.0,95991.0,0.04366624]
[1763226780287,0.40494,95992.0,95991.0,0.04366624]
[1763226781083,0.38233,95992.0,95991.0,0.04366624]
[1763226781284,0.0374927,95997.0,95996.0,0.04351]
[1763226781484,0.02153,96004.0,96003.0,0.04351]
[1763226781784,0.04414,96004.0,96003.0,0.04351]
[1763226782179,0.04414,96007.0,96006.0,0.05728]
[1763226782385,0.08163685,96007.0,96006.0,0.05728]
[1763226783083,0.04414,96007.0,96006.0,0.05728]
[1763226783383,0.04414,96007.0,96006.0,0.05828]
[1763226783888,0.04414,96007.0,96006.0,0.04451]
[1763226784082,0.04414,96007.0,96006.0,0.04551]
[1763226785281,0.04414,96007.0,96006.0,0.05828]
[1763226785490,0.02388427,96010.0,96009.0,0.04351]
[1763226785687,0.04649427,96010.0,96009.0,0.04351]
[1763226793785,0.02388427,96010.0,96009.0,0.04351]
[1763226793989,0.00235427,96010.0,96009.0,0.04351]
[1763226794297,0.00015624,96010.0,96009.0,0.04351]
[1763226800410,0.00015624,96010.0,96009.0,0.04451]
[1763226800913,0.00015624,96010.0,96009.0,0.04551]
[1763226801802,0.00015624,96010.0,96009.0,0.04351]
[1763226802002,0.00015624,96010.0,96009.0,0.04551]
[1763226802405,0.00015624,96010.0,96009.0,0.04451]
[1763226802610,0.00015624,96010.0,96009.0,0.04551]
[1763226803112,0.04413624,96010.0,96009.0,0.04551]
[1763226803308,0.04413624,96010.0,96009.0,0.04451]
[1763226803613,0.04413624,96010.0,96009.0,0.04551]
[1763226804004,0.04413624,96010.0,96009.0,0.04451]
[1763226804206,0.04413624,96010.0,96009.0,0.04551]
[1763226804614,0.04413624,96010.0,96009.0,0.04451]
[1763226804814,0.02162624,96010.0,96009.0,0.04351]
[1763226805002,0.02162624,96010.0,96009.0,0.04451]
[1763226805708,0.00015624,96010.0,96009.0,0.04351]
[1763226808708,0.04554427,96010.0,96009.0,0.04351]
[1763226808907,0.04372,96004.0,96003.0,0.40572]
[1763226814611,0.40467624,96010.0,96009.0,0.04492]
[1763226814817,0.40687427,96010.0,96009.0,0.04492]
[1763226822020,0.04372,96004.0,96003.0,0.40572]
[1763226822217,0.04372,96004.0,96003.0,0.04492]
[1763226822922,0.04372,96001.0,96000.0,0.07369067]
[1763226823117,0.04372,96001.0,96000.0,0.04565197]
[1763226823518,0.04372,96001.0,96000.0,0.05872197]
[1763226824224,0.36095624,96010.0,96009.0,0.04492]
[1763226824522,0.04372,96016.0,96015.0,0.05799]
[1763226825226,0.022,96016.0,96015.0,0.41879]
[1763226826116,0.04372,96016.0,96015.0,0.41879]
[1763226832227,0.04372,96016.0,96015.0,0.40572]
[1763226833527,0.04372,96016.0,96015.0,0.41879]
[1763226835835,0.04372,96016.0,96015.0,0.40572]
[1763226836838,0.09996082,96016.0,96015.0,0.40572]
[1763226837024,0.04372,96016.0,96015.0,0.40572]
[1763226837231,0.04372,96016.0,96015.0,0.41879]
[1763226839334,0.04372,96016.0,96015.0,0.40572]
[1763226840029,0.09996082,96016.0,96015.0,0.40572]
[1763226840229,0.04372,96016.0,96015.0,0.40572]
[1763226842430,0.04372,96016.0,96015.0,0.41886]
[1763226842637,0.04372,96016.0,96015.0,0.40572]
[1763226843741,0.08122259,96016.0,96015.0,0.40572]
[1763226843941,0.08122259,96016.0,96015.0,0.41886]
[1763226844533,0.08122333,96016.0,96015.0,0.41886]
[1763226845138,0.04372,96016.0,96015.0,0.04492]
[1763226851145,0.04372,96016.0,96015.0,0.05806]
[1763226851360,0.04372,96016.0,96015.0,0.04492]
[1763226851946,0.04372,96016.0,96015.0,0.05872]
[1763226853947,0.09999249,96016.0,96015.0,0.41952]
[1763226854454,0.04372,96016.0,96015.0,0.41952]
[1763226861247,0.04372,96016.0,96015.0,0.40572]
[1763226863260,0.00219803,96020.0,96011.0,0.06156]
[1763226863261,0.04322,96012.0,96011.0,0.06156]
[1763226863455,0.04322,96012.0,96011.0,0.05827486]
[1763226863947,0.04322,96007.0,96006.0,0.04615624]
[1763226864147,0.0995072,96007.0,96006.0,0.04615624]
[1763226864350,0.04322,96007.0,96006.0,0.04615624]
[1763226865245,0.09948304,96007.0,96006.0,0.04615624]
[1763226866248,0.09948304,96007.0,96006.0,0.00015624]
[1763226866249,0.04322,96007.0,96006.0,0.00015624]
[1763226867353,0.04322,96007.0,96006.0,0.02323624]
[1763226867556,0.04322,96007.0,96006.0,0.04615624]
[1763226867755,0.04322,96007.0,96006.0,0.02323624]
[1763226867950,0.04322,96007.0,96006.0,0.04615624]
[1763226876159,0.04322,96007.0,96006.0,0.00015624]
[1763226879656,0.04322,96007.0,96006.0,0.04630624]
[1763226881157,0.04349,95998.0,95997.0,0.10449]
[1763226881560,0.04349,95998.0,95997.0,0.04615]
[1763226882464,0.04349,95998.0,95997.0,0.04715]
[1763226886462,0.04349,95998.0,95990.0,0.18060155]
[1763226886463,0.04349,95991.0,95990.0,0.08157]
[1763226886664,0.40429,95991.0,95990.0,0.05838]
[1763226886856,0.40429,95991.0,95988.0,0.00015624]
[1763226886857,0.04349,95989.0,95988.0,0.00015624]
[1763226887060,0.04349,95980.0,95979.0,0.40695]
[1763226887260,0.04568803,95980.0,95979.0,0.40695]
[1763226887665,0.04468803,95980.0,95979.0,0.40695]
[1763226888262,0.04349,95971.0,95970.0,0.06009624]
[1763226888559,0.04249,95971.0,95970.0,0.04703821]
[1763226888766,0.04249,95971.0,95970.0,0.06082821]
[1763226889567,0.04249,95971.0,95970.0,0.06182821]
[1763226889969,0.04249,95971.0,95970.0,0.06082821]
[1763226890762,0.07992975,95971.0,95970.0,0.06082821]
[1763226892376,0.04249,95971.0,95970.0,0.06082821]
[1763226892569,0.07992975,95971.0,95970.0,0.06082821]
[1763226893868,0.04249,95971.0,95970.0,0.06082821]
[1763226894965,0.05944975,95979.0,95978.0,0.04615]
[1763226895266,0.04349,95979.0,95978.0,0.04615]
[1763226895668,0.08092975,95979.0,95978.0,0.04615]
[1763226895976,0.04449,95979.0,95978.0,0.04615]
[1763226896569,0.04349,95979.0,95978.0,0.04615]
[1763226897773,0.04349,95973.0,95972.0,0.04615]
[1763226898976,0.04349,95973.0,95972.0,0.02319]
[1763226899177,0.04349,95973.0,95972.0,0.04479]
[1763226900776,0.02201,95973.0,95972.0,0.04479]
[1763226901277,0.0435,95973.0,95972.0,0.04479]
[1763226902078,0.03743975,95975.0,95974.0,0.04354]
[1763226902270,0.00259599,95985.0,95984.0,0.04354]
[1763226902475,0.05620876,95997.0,95996.0,0.04354]
[1763226902674,0.0428,95997.0,95996.0,0.02194]
[1763226902880,0.0428,95985.0,95984.0,0.02194]
[1763226903067,0.0428,95981.0,95980.0,0.04427197]
[1763226903673,0.4036,95987.0,95986.0,0.04354]
[1763226904681,0.05610448,95989.0,95977.0,0.13537155]
[1763226904682,0.07741448,95989.0,95988.0,0.04354]
[1763226904980,0.00235427,95990.0,95989.0,0.04354]
[1763226905186,0.00235427,95990.0,95989.0,0.40434]
[1763226906384,0.04515427,95990.0,95989.0,0.40434]
[1763226906792,0.04615427,95990.0,95989.0,0.40434]
[1763226907284,0.02466427,95990.0,95989.0,0.40434]
[1763226907480,0.00335427,95990.0,95989.0,0.40434]
[1763226908078,0.02466427,95990.0,95989.0,0.40434]
[1763226908277,0.04615427,95990.0,95989.0,0.40434]
[1763226908588,0.0428,95982.0,95981.0,0.40434]
[1763226909388,0.0428,95981.0,95980.0,0.00073197]
[1763226910885,0.0428,95981.0,95980.0,0.04427197]
[1763226912184,0.0428,95981.0,95980.0,0.00073197]
[1763226912487,0.04258,95978.0,95977.0,0.05844]
[1763226912679,0.40338,95978.0,95977.0,0.05844]
[1763226912884,0.04258,95971.0,95970.0,0.04408624]
[1763226913083,0.04258,95971.0,95970.0,0.04481821]
[1763226918996,0.41698971,95978.0,95970.0,0.01391821]
[1763226919197,0.01329,96012.0,95970.0,0.01391821]
[1763226919198,0.0529928,95985.0,95984.0,0.05696]
[1763226919496,0.00015624,95990.0,95989.0,0.04393]
[1763226919694,0.02390302,96026.0,96015.0,0.04393]
[1763226919695,0.04258,96016.0,96015.0,0.04393]
[1763226920094,0.3608,96017.0,96015.0,0.04393]
[1763226920297,0.00219803,96020.0,96015.0,0.04393]
[1763226920298,0.00219803,96020.0,96019.0,0.04393]
[1763226920901,0.00219803,96020.0,96016.0,0.00992]
[1763226920902,0.02133624,96029.0,96028.0,0.04393]
[1763226921602,0.04273624,96029.0,96028.0,0.04393]
[1763226921817,0.05301121,96029.0,96028.0,0.04393]
[1763226922300,0.04273624,96029.0,96028.0,0.04393]
[1763226922608,0.04273624,96029.0,96023.0,0.40473]
[1763226922609,0.05587,96024.0,96023.0,0.40473]
[1763226922997,0.04258,96024.0,96023.0,0.40473]
[1763226924392,0.0105665,96029.0,96028.0,0.02141]
[1763226924593,0.0105665,96029.0,96028.0,0.04393]
[1763226924792,0.0317465,96029.0,96028.0,0.04393]
[1763226925104,0.00015624,96029.0,96028.0,0.04393]
[1763226927905,0.00015624,96029.0,96028.0,0.04493]
[1763226928304,0.04271624,96029.0,96028.0,0.04593]
[1763226928498,0.02133624,96029.0,96028.0,0.04493]
[1763226928809,0.04271624,96029.0,96028.0,0.04493]
[1763226928999,0.04271624,96029.0,96028.0,0.04593]
[1763226929395,0.04271624,96029.0,96028.0,0.04493]
[1763226929598,0.04271624,96029.0,96028.0,0.04593]
[1763226930710,0.04271624,96029.0,96028.0,0.04493]
[1763226931206,0.04271624,96029.0,96028.0,0.04593]
[1763226932100,0.04271624,96029.0,96028.0,0.04493]
[1763226932604,0.04271624,96029.0,96028.0,0.001]
[1763226933608,0.04434,96027.0,96026.0,0.05845]
[1763226933809,0.40514,96027.0,96026.0,0.05845]
[1763226934105,0.40514,96027.0,96026.0,0.10452]
[1763226934908,0.40514,96027.0,96026.0,0.10552]
[1763226935107,0.40514,96027.0,96026.0,0.10652]
[1763226935905,0.40514,96027.0,96026.0,0.06045]
[1763226936107,0.40514,96027.0,96026.0,0.08323]
[1763226936805,0.40514,96027.0,96026.0,0.06045]
[1763226937507,0.40514,96027.0,96026.0,0.05945]
[1763226937906,0.40514,96027.0,96026.0,0.05845]
[1763226940507,0.44238886,96027.0,96026.0,0.00060125]
[1763226940708,0.44238886,96027.0,96010.0,0.02293624]
[1763226940709,0.04434,96011.0,96010.0,0.02293624]
[1763226941204,0.04434,96011.0,96010.0,0.04622624]
[1763226941907,0.04434,96011.0,96010.0,0.04695821]
[1763226945409,0.04434,96011.0,96010.0,0.00015624]
[1763226945711,0.04434,95993.0,95992.0,0.05978]
[1763226947208,0.04434,95993.0,95992.0,0.06078]
[1763226947809,0.04434,95993.0,95992.0,0.05978]
[1763226949611,0.0816747,95993.0,95992.0,0.04607]
[1763226949929,0.05588576,95998.0,95990.0,0.00073197]
[1763226949930,0.04858,95991.0,95990.0,0.00073197]
[1763226951210,0.04858,95991.0,95987.0,0.3608]
[1763226951415,0.04434,95988.0,95987.0,0.38358]
[1763226951816,0.40514,95988.0,95987.0,0.04607]
[1763226952114,0.00219803,95990.0,95989.0,0.04607]
[1763226952317,0.04653803,95990.0,95989.0,0.04607]
[1763226953314,0.08391299,95990.0,95989.0,0.04607]
[1763226953810,0.04653803,95990.0,95989.0,0.04607]
[1763226954816,0.05588576,96001.0,95996.0,0.04607]
[1763226955015,0.04653803,96000.0,95999.0,0.04607]
[1763226957711,0.02515803,96000.0,95999.0,0.04607]
[1763226957912,0.04653803,96000.0,95999.0,0.04607]
[1763226959121,0.08388867,96000.0,95999.0,0.04607]
[1763226960224,0.04653803,96000.0,95999.0,0.04607]
[1763226960416,0.08391518,96000.0,95999.0,0.04607]
[1763226961020,0.04653803,96000.0,95999.0,0.04607]
[1763226961324,0.08391518,96000.0,95999.0,0.04607]
[1763226961917,0.01489803,96000.0,95991.0,0.04411]
[1763226962122,0.04342,95992.0,95991.0,0.04411]
[1763226962422,0.08080773,95992.0,95991.0,0.04411]
[1763226963215,0.04342,95992.0,95991.0,0.04411]
[1763226964416,0.08080773,95992.0,95991.0,0.04411]
[1763226965214,0.04342,95992.0,95991.0,0.04411]
[1763226965816,0.08083818,95992.0,95991.0,0.04411]
[1763226966213,0.04342,95992.0,95991.0,0.04411]
[1763226966822,0.04342,95984.0,95981.0,0.3608]
[1763226967228,0.40422,95984.0,95983.0,0.02175624]
[1763226967531,0.40422,95984.0,95983.0,0.00015624]
[1763226969124,0.40422,95984.0,95983.0,0.00115624]
[1763226969326,0.46037284,95984.0,95983.0,0.00115624]
[1763226970218,0.4603798,95984.0,95983.0,0.00115624]
[1763226971221,0.40422,95984.0,95983.0,0.04426624]
[1763226973019,0.40422,95984.0,95983.0,0.00015624]
[1763226976225,0.40422,95984.0,95946.0,0.02803843]
[1763226976226,0.04552,95967.0,95946.0,0.01271]
[1763226976431,0.04552,95967.0,95966.0,0.02331051]
[1763226976633,0.04552,95967.0,95966.0,0.04580051]
[1763226977123,0.10171434,95967.0,95966.0,0.04580051]
[1763226977431,0.04552,95967.0,95966.0,0.04680051]
[1763226977724,0.04552,95967.0,95966.0,0.00126051]
[1763226978028,0.05609672,95967.0,95966.0,0.00126051]
[1763226978440,0.05609672,95967.0,95966.0,0.00226051]
[1763226979029,0.05609672,95967.0,95966.0,0.00126051]
[1763226979229,0.05822,95958.0,95957.0,0.00015624]
[1763226979531,0.41902,95958.0,95957.0,0.00015624]
[1763226982927,0.04552,95947.0,95946.0,0.05825]
[1763226983128,0.04552,95947.0,95946.0,0.04554]
[1763226983341,0.00219803,95950.0,95935.0,0.36549065]
[1763226983342,0.3608,95948.0,95935.0,0.41103065]
[1763226983632,0.3608,95948.0,95935.0,0.00171336]
[1763226983633,0.04552,95936.0,95935.0,0.00171336]
[1763226984837,0.04552,95936.0,95935.0,0.00271336]
[1763226985034,0.04552,95936.0,95935.0,0.00371336]
[1763226985425,0.04552,95936.0,95935.0,0.06196336]
[1763226985630,0.04552,95936.0,95935.0,0.06096336]
[1763226986028,0.38339,95939.0,95938.0,0.04554]
[1763226986228,0.3608,95939.0,95938.0,0.04554]
[1763226986432,0.40632,95939.0,95938.0,0.04554]
[1763226987530,0.40632,95939.0,95935.0,0.02476336]
[1763226987531,0.04552,95936.0,95935.0,0.02476336]
[1763226988039,0.04552,95936.0,95935.0,0.04725336]
[1763226989130,0.00219803,95940.0,95939.0,0.04391]
[1763226990249,0.04550803,95940.0,95939.0,0.04391]
[1763226991934,0.00219803,95940.0,95939.0,0.04391]
[1763226994035,0.02132633,95945.0,95944.0,0.04391]
[1763226994237,0.04346633,95945.0,95944.0,0.04391]
[1763226994624,0.00015633,95945.0,95944.0,0.04391]
[1763226995226,0.00015633,95945.0,95944.0,0.40471]
[1763226996038,0.05609889,95974.0,95973.0,0.04391]
[1763226996231,0.05609889,95988.0,95986.0,0.04391]
[1763226996426,0.00219803,95990.0,95989.0,0.04391]
[1763226996626,0.40411,96000.0,95999.0,0.04391]
[1763226996831,0.40630803,96000.0,95999.0,0.04391]
[1763226997038,0.36299803,96000.0,95999.0,0.04391]
[1763226997330,0.36299803,96000.0,95990.0,0.04406633]
[1763226997331,0.04331,95991.0,95990.0,0.04406633]
[1763226997534,0.40411,95991.0,95990.0,0.0008883]
[1763226997740,0.40411,95991.0,95990.0,0.00015633]
[1763227001331,0.40511,95991.0,95990.0,0.00015633]
[1763227003037,0.40611,95991.0,95990.0,0.00015633]
[1763227003237,0.40511,95991.0,95990.0,0.00015633]